bitfinex/quotes_ETHUSD_20260203
["timestamp","ask_amount","ask_price","bid_price","bid_amount"]
[1770147934618,0.00681849,2200.1,2199.6,0.001]
[1770147936415,0.00681864,2200.0,2199.6,0.001]
[1770147936737,0.00681864,2199.8,2199.1,1.67178502]
[1770147936956,0.00681864,2199.8,2199.0,1.37043039]
[1770147937237,0.00681864,2199.9,2199.0,0.68711088]
[1770147937445,0.00682004,2199.4,2198.5,11.5419]
[1770147938126,0.00682004,2199.4,2198.3,13.63110808]
[1770147938127,0.00682004,2199.4,2198.3,13.63111391]
[1770147938839,0.00682143,2199.3,2198.3,13.63111861]
[1770147939000,0.00682004,2199.4,2198.3,12.49389655]
[1770147939204,0.0068219,2199.3,2198.3,16.49983158]
[1770147939713,0.0068219,2199.3,2198.3,15.36263137]
[1770147940103,0.0068219,2199.3,2198.3,12.49389655]
[1770147940302,0.00682004,2199.7,2198.3,13.63112533]
[1770147940518,0.0068219,2199.5,2198.7,0.001]
[1770147940731,0.0068219,2199.4,2198.7,0.001]
[1770147941809,12.26686681,2199.8,2198.7,0.001]
[1770147941810,0.0068219,2200.1,2198.7,12.49489655]
[1770147942005,1.22736906,2200.1,2198.9,12.72746685]
[1770147942211,0.0068219,2200.4,2198.9,12.72746685]
[1770147942445,0.0068219,2200.3,2198.9,12.72746685]
[1770147942750,0.0068219,2200.2,2198.9,12.72746685]
[1770147942950,0.8428219,2200.4,2198.9,12.72746685]
[1770147943159,0.8428219,2200.4,2199.1,12.72746685]
[1770147943160,0.0068219,2200.3,2199.1,12.72746685]
[1770147943360,0.8428219,2200.4,2199.2,2.70993849]
[1770147943671,0.0068219,2200.3,2199.2,2.70993849]
[1770147943955,0.0068219,2200.1,2199.2,2.70993849]
[1770147944155,0.0068219,2199.7,2198.8,11.5419]
[1770147944357,0.8448219,2199.6,2198.8,11.5419]
[1770147944656,0.0068219,2199.4,2198.8,11.5419]
[1770147944833,0.8448219,2199.6,2198.8,11.5419]
[1770147945037,0.8448219,2199.6,2198.7,0.001]
[1770147945340,0.0068219,2199.2,2198.7,0.001]
[1770147945524,0.0068219,2199.3,2198.7,0.001]
[1770147946237,0.0068219,2199.4,2198.7,0.001]
[1770147946746,0.0068219,2199.3,2198.7,0.001]
[1770147947553,0.0068219,2199.1,2198.7,0.001]
[1770147947847,0.0068219,2199.0,2198.7,0.001]
[1770147948147,0.0068219,2198.8,2198.1,0.2335703]
[1770147948447,0.0068219,2198.9,2197.8,0.953]
[1770147948635,0.0068219,2198.9,2197.8,1.27322796]
[1770147948839,0.0068219,2198.6,2197.7,0.23737963]
[1770147949044,0.0068219,2198.4,2197.4,2.30853272]
[1770147949218,0.841,2198.3,2197.2,0.953]
[1770147950040,12.26686867,2198.5,2197.2,0.953]
[1770147950248,0.842,2198.2,2197.2,0.953]
[1770147950442,0.842,2198.2,2197.2,0.66425043]
[1770147950851,12.26686867,2198.5,2197.2,0.66425043]
[1770147951051,0.843,2198.4,2197.2,1.80205913]
[1770147951252,0.843,2198.4,2197.2,0.66425043]
[1770147951571,12.80139273,2199.0,2197.3,13.17735183]
[1770147951754,0.844,2198.9,2197.6,0.2335703]
[1770147951935,0.844,2198.9,2197.5,12.94378153]
[1770147952268,12.31886279,2198.7,2197.3,0.954]
[1770147952465,12.31886279,2198.7,2197.4,0.001]
[1770147952466,12.32568795,2198.7,2197.4,0.001]
[1770147952636,13.55893926,2198.6,2197.4,0.001]
[1770147953161,13.55893926,2198.6,2197.1,13.17835183]
[1770147953365,13.55893926,2198.6,2197.2,0.2335703]
[1770147953667,13.5521141,2198.6,2197.2,0.2335703]
[1770147953875,0.00682516,2198.5,2197.1,0.001]
[1770147954165,12.8635054,2198.4,2197.1,1.3724299]
[1770147954352,0.847,2198.4,2197.1,13.2832318]
[1770147955664,0.847,2198.4,2197.1,13.28322414]
[1770147956065,12.87033056,2198.4,2197.1,0.001]
[1770147956250,1.28703306,2198.3,2197.1,0.59342807]
[1770147956449,1.28703306,2198.3,2197.1,1.13886183]
[1770147956646,1.28703306,2198.3,2196.7,13.04883951]
[1770147956647,0.00682516,2198.0,2196.7,13.04883951]
[1770147956857,12.8645054,2198.2,2196.7,11.9108019]
[1770147957059,12.8645054,2198.2,2196.9,13.04876459]
[1770147957060,0.848,2198.2,2196.9,13.04876459]
[1770147957369,0.848,2198.2,2196.9,11.9108019]
[1770147957568,0.848,2198.2,2197.0,1.40027849]
[1770147957760,0.00682609,2198.1,2196.8,0.954]
[1770147957958,12.02333149,2198.1,2196.8,0.954]
[1770147958481,12.02333149,2198.1,2196.4,11.5419]
[1770147958642,1.99214948,2198.2,2196.6,13.0489177]
[1770147958643,0.849,2198.0,2196.6,13.0489177]
[1770147958966,0.52343936,2198.4,2196.9,1.1379578]
[1770147959143,0.85,2198.3,2196.9,11.9108019]
[1770147959337,0.85,2198.3,2197.0,1.19108019]
[1770147959538,12.02333149,2198.1,2196.5,12.8648019]
[1770147959743,12.02333149,2197.8,2196.5,0.954]
[1770147960045,0.85682609,2197.7,2196.2,0.1024]
[1770147960352,0.00682702,2197.6,2196.1,12.8648019]
[1770147960742,12.02333242,2197.6,2196.1,12.8648019]
[1770147960938,13.30452125,2197.5,2196.1,14.00317381]
[1770147961145,0.00682811,2197.3,2196.1,11.9108019]
[1770147961472,0.85782811,2197.2,2196.1,11.9108019]
[1770147961676,0.00682811,2197.0,2196.0,1.0896283]
[1770147961862,0.00682811,2196.9,2196.1,0.2335703]
[1770147962172,0.85882702,2197.6,2196.1,13.28273312]
[1770147962364,1.42384668,2197.4,2196.2,1.43723614]
[1770147962674,1.41701764,2197.4,2196.1,13.28274434]
[1770147962873,0.852,2197.6,2196.1,13.28274572]
[1770147963074,0.00682904,2197.5,2196.1,12.1443722]
[1770147963378,0.00682904,2197.5,2196.1,0.2335703]
[1770147963379,0.00682904,2197.3,2196.1,0.2335703]
[1770147963988,0.00682904,2197.4,2196.1,12.1443722]
[1770147964271,0.00682904,2197.5,2196.1,12.1443722]
[1770147964481,0.00682904,2197.5,2196.2,1.43724077]
[1770147964677,0.00682904,2197.1,2196.0,0.1356283]
[1770147964890,0.85982904,2197.0,2196.0,0.1356283]
[1770147965850,0.854,2197.1,2196.0,0.1356283]
[1770147966151,0.51661327,2197.8,2196.1,12.1443722]
[1770147966356,0.51661327,2197.8,2196.7,11.9108019]
[1770147966554,0.51661327,2197.8,2196.6,0.2335703]
[1770147966555,0.00682904,2198.7,2197.0,12.1443722]
[1770147966862,0.41596193,2198.9,2197.2,12.1443722]
[1770147967062,0.0011,2198.5,2197.5,11.9108019]
[1770147967293,0.8551,2198.5,2197.1,11.9108019]
[1770147967455,0.00682904,2198.1,2197.0,11.5419]
[1770147967654,0.00682904,2198.2,2197.0,11.5419]
[1770147967883,0.00682904,2198.0,2197.0,11.5419]
[1770147968075,0.853,2197.9,2196.5,12.9672019]
[1770147968278,0.853,2197.9,2196.7,0.2335703]
[1770147968482,0.00682904,2197.7,2196.7,1.65721929]
[1770147968789,0.00682904,2197.7,2196.7,2.7952727]
[1770147968966,0.853,2197.9,2197.0,0.2335703]
[1770147969367,0.00682904,2197.4,2196.8,0.2335703]
[1770147969567,0.00682904,2197.1,2196.7,11.5419]
[1770147969978,0.00682904,2196.8,2196.7,9.67635147]
[1770147970163,0.00682904,2196.8,2196.3,0.001]
[1770147970367,0.00682904,2197.0,2196.3,0.001]
[1770147970568,0.00682904,2197.9,2196.5,0.2335703]
[1770147970755,0.00682904,2197.5,2196.4,0.954]
[1770147972096,0.852,2197.7,2196.5,0.2335703]
[1770147972256,0.00682904,2197.6,2196.5,3.26681578]
[1770147972461,0.00682904,2197.5,2196.5,3.26681578]
[1770147972687,0.00682904,2197.5,2196.4,11.5419]
[1770147972991,0.00682904,2197.4,2196.4,11.5419]
[1770147973166,0.00682904,2197.5,2196.3,0.001]
[1770147973369,0.00682904,2197.6,2196.3,1.37284831]
[1770147973561,0.852,2197.7,2196.5,0.2335703]
[1770147973562,0.853,2197.7,2196.5,0.2335703]
[1770147973761,2.14131635,2197.7,2196.5,0.2335703]
[1770147973962,0.00682904,2198.0,2196.4,12.0132019]
[1770147974187,0.0011,2198.5,2196.9,0.2335703]
[1770147974514,0.00682904,2198.3,2197.1,0.2335703]
[1770147974860,0.0011,2198.5,2197.3,0.2335703]
[1770147975089,0.8541,2198.5,2197.3,0.2335703]
[1770147975293,0.8541,2198.5,2197.1,1.13886201]
[1770147975294,0.00682904,2198.3,2197.1,0.2335703]
[1770147975595,0.00682904,2198.3,2197.2,0.91112887]
[1770147975793,0.00682904,2198.3,2197.3,0.91112887]
[1770147975995,0.00682904,2198.3,2197.1,1.65729372]
[1770147976292,0.00682904,2198.3,2197.1,1.42372342]
[1770147976293,0.00682904,2197.8,2197.1,1.42372342]
[1770147976468,0.00682904,2197.8,2197.0,0.954]
[1770147976664,0.00682904,2197.8,2197.1,0.91190768]
[1770147976862,0.00682904,2198.0,2197.0,0.954]
[1770147977065,0.00682904,2198.0,2197.1,0.9118768]
[1770147977411,0.00682904,2198.0,2197.2,0.9118768]
[1770147977568,0.00682904,2198.0,2197.0,0.954]
[1770147977569,0.00682904,2197.8,2197.0,0.954]
[1770147977893,0.00682904,2197.9,2197.1,2.27588802]
[1770147978097,0.00682904,2198.1,2197.2,1.14602685]
[1770147978303,0.00682904,2198.1,2197.3,0.91245655]
[1770147978467,0.00682904,2198.0,2197.3,0.91245655]
[1770147978666,0.00682904,2197.9,2197.0,0.954]
[1770147978868,0.00682904,2197.6,2197.0,2.3174762]
[1770147979070,0.00682904,2197.5,2196.7,1.13886201]
[1770147979375,0.00682904,2197.4,2196.4,2.09286201]
[1770147979575,0.00682904,2197.4,2196.5,2.05230755]
[1770147979891,0.00682904,2197.4,2196.4,0.954]
[1770147979892,0.00682904,2197.4,2196.6,0.91344554]
[1770147980099,0.00682904,2197.4,2196.7,0.91344554]
[1770147980300,0.00682904,2197.4,2196.5,1.13886201]
[1770147980464,0.00682904,2197.4,2196.5,2.05285377]
[1770147980668,0.00682904,2197.2,2196.6,0.91399176]
[1770147980869,0.00682904,2197.2,2196.4,1.13886201]
[1770147981099,0.00682904,2197.1,2196.5,0.91433028]
[1770147981314,0.00682904,2197.1,2196.3,1.13986201]
[1770147981470,0.00682904,2197.1,2196.3,0.001]
[1770147981471,0.00682904,2196.8,2196.3,0.001]
[1770147981770,0.00682904,2197.0,2196.3,0.001]
[1770147981971,0.00682904,2196.7,2196.3,0.001]
[1770147982397,0.00682904,2196.6,2196.3,0.001]
[1770147982705,0.00682904,2196.5,2196.2,0.001]
[1770147982998,0.00682904,2196.5,2196.0,0.1356283]
[1770147982999,0.00682904,2196.3,2196.0,0.1356283]
[1770147983203,0.00682951,2196.0,2195.5,2.30853272]
[1770147983402,0.00682904,2196.4,2195.5,2.30853272]
[1770147983403,0.00682951,2197.1,2195.6,2.09850285]
[1770147983607,12.19922752,2197.7,2196.1,1.37243231]
[1770147983781,12.19922752,2197.7,2196.3,12.08322169]
[1770147983782,0.00682951,2197.6,2196.3,12.08322169]
[1770147984100,12.19922752,2197.2,2196.4,0.37232789]
[1770147984298,0.00682951,2197.1,2196.0,1.13886201]
[1770147984597,0.85882951,2197.3,2196.0,1.1875703]
[1770147984810,0.852,2197.3,2196.0,14.1760837]
[1770147984970,0.00682951,2196.9,2195.8,1.13886201]
[1770147985170,0.00682951,2197.2,2195.9,0.2335703]
[1770147985478,0.00682951,2197.2,2195.9,0.52018934]
[1770147985677,12.19922752,2197.6,2195.9,2.51091171]
[1770147985678,13.05122752,2197.6,2195.9,2.51091171]
[1770147986485,0.00682951,2197.4,2195.9,2.51091171]
[1770147986681,0.00682951,2197.3,2195.9,1.37243231]
[1770147986881,14.19566792,2197.6,2195.9,14.36055925]
[1770147986882,13.05805703,2197.6,2195.9,14.36055925]
[1770147987086,13.05805703,2197.6,2196.1,0.2335703]
[1770147987281,1.42775692,2197.5,2196.1,1.66962623]
[1770147987485,0.00682951,2197.4,2196.0,1.13886201]
[1770147987686,0.00682951,2197.4,2195.9,4.65633004]
[1770147987687,0.00682951,2197.3,2195.9,4.65633004]
[1770147987999,2.27292741,2197.5,2195.9,4.65633004]
[1770147988000,1.42092741,2197.5,2196.2,12.08322169]
[1770147988206,13.05332752,2197.8,2196.4,0.2335703]
[1770147988410,13.05332752,2197.8,2196.3,0.955]
[1770147988411,12.20605703,2197.6,2196.3,0.955]
[1770147988609,0.00682951,2197.5,2196.3,0.955]
[1770147988784,0.00682951,2197.3,2196.3,0.955]
[1770147988981,0.00682951,2197.3,2195.7,13.9435134]
[1770147989181,14.28202863,2197.5,2195.9,11.84965139]
[1770147989182,13.42802863,2197.5,2195.9,11.84965139]
[1770147989527,1.2219716,2197.5,2196.4,0.2335703]
[1770147989710,0.854,2197.7,2196.4,0.2335703]
[1770147989913,0.854,2197.7,2196.5,0.1024]
[1770147990111,0.854,2197.7,2196.4,0.2335703]
[1770147990313,0.00682951,2197.5,2196.3,0.955]
[1770147990820,0.00682951,2197.3,2196.1,0.2335703]
[1770147991034,0.00682951,2197.2,2196.1,0.2335703]
[1770147991324,0.00682951,2197.2,2196.1,0.5305132]
[1770147991682,0.00682951,2197.2,2195.8,1.13970056]
[1770147991683,0.00682951,2197.0,2195.8,1.13970056]
[1770147991917,0.856,2197.1,2195.8,1.24091665]
[1770147992221,0.856,2197.1,2195.8,0.1024]
[1770147992602,0.856,2197.1,2195.8,0.2335703]
[1770147993500,0.856,2197.1,2195.8,1.13853647]
[1770147993700,0.856,2197.1,2195.7,1.47567086]
[1770147994022,0.856,2197.1,2195.9,0.2335703]
[1770147994327,9.89477384,2197.8,2196.3,0.2335703]
[1770147994328,0.00916261,2197.8,2196.3,0.2335703]
[1770147994625,0.00916261,2197.8,2196.4,0.955]
[1770147994626,0.855,2197.7,2196.4,0.955]
[1770147994827,1.30770492,2197.7,2196.5,12.08322169]
[1770147995027,0.00916261,2197.8,2196.5,12.08322169]
[1770147995383,0.00916261,2197.8,2196.8,11.95205139]
[1770147995692,0.0011,2198.5,2197.1,12.08322169]
[1770147995911,0.0011,2198.5,2197.3,13.22292225]
[1770147996240,0.0011,2198.5,2197.6,0.2335703]
[1770147996391,0.0011,2198.5,2197.7,0.955]
[1770147996595,0.0011,2198.5,2197.8,1.14269927]
[1770147996925,0.0011,2198.5,2197.8,0.2335703]
[1770147997314,0.0011,2198.5,2197.4,2.60722344]
[1770147997488,0.0011,2198.5,2197.2,0.2335703]
[1770147997489,0.8561,2198.5,2197.2,0.2335703]
[1770147997691,0.8561,2198.5,2197.0,2.09470056]
[1770147997922,0.8561,2198.5,2197.1,0.2335703]
[1770147997923,0.00682951,2198.3,2197.1,0.2335703]
[1770147998236,0.0011,2198.5,2197.3,0.2335703]
[1770147998527,0.0011,2198.5,2197.1,12.08322169]
[1770147998528,0.00682951,2198.3,2197.1,0.2335703]
[1770147998707,0.00682951,2198.3,2197.2,1.01129008]
[1770147998896,0.00682951,2198.3,2197.2,0.1024]
[1770147999494,0.00682951,2198.3,2197.3,0.2335703]
[1770147999695,0.00792951,2198.5,2197.5,0.2335703]
[1770147999696,0.0011,2198.5,2197.5,0.2335703]
[1770147999996,0.0011,2198.5,2197.6,13.81398469]
[1770148000310,0.0011,2198.5,2197.8,0.2335703]
[1770148000494,0.0011,2198.5,2197.7,1.4047555]
[1770148000695,0.0011,2198.5,2197.7,0.2335703]
[1770148001317,0.0011,2198.5,2197.6,1.0564]
[1770148001527,0.00792951,2198.5,2197.6,1.0564]
[1770148002026,0.00792951,2198.5,2197.7,0.2335703]
[1770148002027,0.0011,2198.5,2197.7,0.2335703]
[1770148002231,0.0011,2198.5,2197.7,0.69781765]
[1770148002533,0.0011,2198.5,2197.8,0.2335703]
[1770148004605,0.0011,2198.5,2197.7,0.954]
[1770148004903,0.0011,2198.5,2197.2,11.84965139]
[1770148004904,0.00682951,2198.3,2197.2,11.84965139]
[1770148005103,0.00682951,2198.4,2197.2,11.84965139]
[1770148005104,0.00682951,2198.4,2197.2,0.954]
[1770148005336,0.0011,2198.5,2197.3,12.98737922]
[1770148005532,0.00792951,2198.5,2197.4,1.84925113]
[1770148005725,0.00682951,2198.4,2197.5,0.2335703]
[1770148006031,0.00682951,2198.3,2197.4,1.84925113]
[1770148006234,0.00682951,2198.1,2197.2,0.954]
[1770148006404,0.0011,2198.5,2197.3,12.08322169]
[1770148006605,0.0011,2198.5,2197.6,0.2335703]
[1770148006914,0.0011,2198.5,2197.5,1.13764861]
[1770148007101,0.0011,2198.5,2197.6,0.2335703]
[1770148007304,0.0011,2198.7,2197.8,0.2335703]
[1770148007613,0.0011,2198.7,2197.8,0.954]
[1770148007820,0.00792951,2198.7,2197.8,0.954]
[1770148008415,0.00682951,2198.4,2197.5,0.2335703]
[1770148008817,0.00682951,2198.3,2197.5,0.2335703]
[1770148009015,0.00682951,2198.3,2197.5,1.53729247]
[1770148009215,0.00682951,2198.1,2197.5,1.30372217]
[1770148009430,0.00682951,2198.0,2197.4,0.954]
[1770148009645,0.00682951,2198.1,2197.4,0.954]
[1770148010104,0.00682951,2198.1,2197.1,0.34661593]
[1770148010105,0.00682951,2198.0,2197.1,0.34661593]
[1770148010314,0.00682951,2197.9,2197.4,0.001]
[1770148010705,0.0011,2198.3,2197.4,0.001]
[1770148011621,0.0011,2198.3,2197.5,0.2335703]
[1770148012436,0.0011,2198.7,2197.7,0.2335703]
[1770148013258,0.00682951,2198.5,2197.4,2.52377371]
[1770148013410,0.00682951,2198.1,2197.4,0.001]
[1770148013610,0.00682951,2198.0,2197.4,0.001]
[1770148014337,0.00682951,2197.9,2197.4,0.001]
[1770148015131,0.00682951,2197.8,2197.4,0.001]
[1770148015310,0.00682951,2197.9,2197.4,0.001]
[1770148015518,0.00682951,2197.7,2197.4,0.001]
[1770148016636,0.00682951,2197.5,2197.1,0.001]
[1770148016846,0.00682951,2197.5,2196.0,2.28214138]
[1770148016847,0.00682951,2196.5,2196.0,0.001]
[1770148017010,0.00682951,2196.5,2195.5,2.30853272]
[1770148017214,0.848,2196.9,2195.6,0.23085327]
[1770148017525,0.848,2197.0,2195.6,0.23085327]
[1770148018458,13.96021356,2197.0,2195.6,0.23085327]
[1770148018613,13.96021356,2197.0,2195.5,2.30853272]
[1770148019021,14.60009006,2197.0,2195.5,2.30853272]
[1770148019265,13.96017965,2197.0,2195.5,2.30853272]
[1770148019416,11.97426056,2197.0,2195.5,3.4472007]
[1770148019616,0.851,2197.1,2195.6,0.2335703]
[1770148019817,12.82526056,2197.1,2195.6,0.4877806]
[1770148020030,12.82526056,2197.1,2195.5,2.30853272]
[1770148020031,11.98109038,2196.9,2195.5,2.30853272]
[1770148020246,11.98109038,2196.9,2195.1,0.1024]
[1770148020447,11.97426056,2196.7,2195.1,0.1024]
[1770148020657,11.97426056,2196.7,2195.1,1.24129047]
[1770148020840,0.852,2196.6,2195.1,1.24129047]
[1770148021034,0.852,2196.6,2195.2,2.0415884]
[1770148021444,13.11212594,2197.1,2195.2,14.32467336]
[1770148021621,0.853,2197.0,2195.3,0.954]
[1770148021823,12.82726056,2197.0,2195.3,0.954]
[1770148022017,11.97426056,2197.0,2195.3,0.954]
[1770148022219,0.853,2197.2,2195.4,14.0445226]
[1770148022421,0.853,2197.2,2195.4,15.18322646]
[1770148022422,1.99083714,2197.2,2195.4,15.18322646]
[1770148022653,1.99081591,2197.2,2195.4,15.18322646]
[1770148022854,1.99081591,2197.2,2195.4,16.13722646]
[1770148023442,0.853,2197.2,2195.4,15.18322646]
[1770148023643,1.99081563,2197.2,2195.5,0.62354271]
[1770148023953,12.82726056,2197.2,2195.6,0.2335703]
[1770148024252,0.853,2197.2,2195.6,12.51665526]
[1770148024552,0.853,2197.3,2196.0,0.2335703]
[1770148024857,12.82726056,2197.3,2195.8,0.2335703]
[1770148025148,12.82726056,2197.3,2195.8,1.37207631]
[1770148025149,1.28340916,2197.2,2195.8,1.37207631]
[1770148025347,1.28340916,2197.2,2195.8,0.2335703]
[1770148025549,11.97426056,2197.1,2195.8,1.37210519]
[1770148025756,0.00683106,2196.9,2195.6,0.2345703]
[1770148025978,11.98109162,2196.9,2195.6,0.001]
[1770148026197,13.17988389,2196.8,2195.6,0.001]
[1770148026354,13.11925344,2196.6,2195.6,0.001]
[1770148026684,1.20562333,2196.8,2195.4,0.001]
[1770148026685,14.02705283,2196.8,2195.4,0.001]
[1770148026885,15.16507775,2196.8,2195.4,0.001]
[1770148027264,11.97426056,2196.7,2195.4,0.001]
[1770148027464,13.4975994,2196.6,2195.4,0.001]
[1770148027689,11.98109162,2196.0,2194.4,0.23702422]
[1770148027979,0.86383106,2195.9,2194.2,1.13936327]
[1770148028195,0.00683355,2195.7,2194.3,0.2335703]
[1770148028348,11.98109411,2195.7,2194.1,4.55766464]
[1770148028649,11.98109411,2195.7,2194.0,12.52009787]
[1770148028650,2.06262632,2195.6,2194.2,1.70777625]
[1770148029087,2.06262632,2195.6,2194.3,0.1024]
[1770148029266,2.06262632,2195.6,2194.2,1.70777625]
[1770148029463,0.00683402,2195.5,2194.2,1.70777625]
[1770148029669,0.00683402,2195.5,2193.9,2.09449814]
[1770148029858,0.00683402,2195.5,2194.1,0.1024]
[1770148030058,0.00683402,2195.3,2194.1,0.1024]
[1770148030255,11.98109458,2195.5,2194.1,0.1024]
[1770148030492,1.19879277,2195.6,2194.1,13.52487813]
[1770148030651,0.86,2195.5,2194.3,0.2335703]
[1770148031151,0.86,2195.5,2194.2,0.2335703]
[1770148033161,0.861,2195.7,2194.2,12.28308496]
[1770148033354,0.00683433,2195.6,2194.3,0.2335703]
[1770148033553,1.40558166,2195.6,2194.3,1.59917498]
[1770148034500,4.56065126,2196.0,2194.3,1.59917498]
[1770148034501,11.97426056,2196.3,2194.6,12.38548496]
[1770148034791,0.00683433,2196.1,2194.6,12.38548496]
[1770148034967,0.00683433,2195.8,2194.5,0.955]
[1770148035164,0.86983433,2195.7,2194.5,1.30098724]
[1770148035387,0.86983433,2195.7,2194.5,0.34598724]
[1770148035590,0.00683433,2195.2,2194.3,1.36560468]
[1770148035790,0.86983433,2195.2,2194.3,1.36560468]
[1770148036088,0.863,2195.2,2194.0,1.24183599]
[1770148036291,0.863,2195.2,2194.0,0.1024]
[1770148036465,0.86983449,2195.2,2194.0,1.13946601]
[1770148036672,0.86983449,2195.2,2194.0,0.2335703]
[1770148036859,0.86983449,2195.2,2193.7,1.68079542]
[1770148036860,0.00683449,2195.1,2193.7,0.30418498]
[1770148037065,0.00683558,2194.2,2193.7,0.30418498]
[1770148037273,11.98109505,2194.7,2193.5,0.23706317]
[1770148037274,0.862,2194.1,2193.5,0.23706317]
[1770148037481,2.06079295,2194.6,2193.4,1.13975952]
[1770148037794,0.862,2194.6,2193.3,1.13979697]
[1770148038091,0.862,2194.6,2193.1,0.955]
[1770148038092,0.00683698,2194.2,2193.1,0.955]
[1770148038262,0.00683698,2194.3,2193.9,0.001]
[1770148038460,0.00683698,2194.2,2193.9,0.001]
[1770148038698,0.00683698,2194.3,2193.6,0.001]
[1770148038996,0.00683698,2194.1,2193.6,0.001]
[1770148039299,0.00683698,2194.2,2193.6,0.001]
[1770148039504,0.00683698,2194.2,2192.7,0.1024]
[1770148039505,0.00683698,2193.9,2192.6,12.28308496]
[1770148039661,0.00683698,2194.2,2193.1,1.13992875]
[1770148039861,0.00683698,2194.2,2193.2,0.2335703]
[1770148040065,0.00683698,2194.1,2193.2,0.2335703]
[1770148040304,0.00683776,2194.0,2193.2,0.2335703]
[1770148040485,0.00683698,2194.2,2193.2,0.2335703]
[1770148040486,0.862,2194.2,2193.2,0.2335703]
[1770148040810,0.00683698,2194.5,2193.3,0.2335703]
[1770148040963,0.00683776,2195.1,2193.7,0.2335703]
[1770148041162,0.00683776,2194.7,2193.7,0.2335703]
[1770148041805,0.00683776,2194.7,2193.5,0.2335703]
[1770148042109,0.00683776,2194.7,2193.4,0.955]
[1770148042110,0.00683776,2194.3,2193.4,0.955]
[1770148042665,0.861,2194.6,2193.5,0.2335703]
[1770148042868,0.86783776,2194.6,2193.5,0.46640852]
[1770148043063,0.00683776,2194.5,2193.5,0.46640852]
[1770148043264,0.00683776,2195.0,2193.5,13.27389616]
[1770148043603,0.00683776,2194.7,2193.5,13.27389616]
[1770148043896,0.00683776,2195.0,2193.6,0.1024]
[1770148044116,0.00683776,2195.0,2193.7,0.2335703]
[1770148044403,0.861,2195.2,2194.0,13.04105794]
[1770148044583,0.00683776,2194.9,2194.0,0.2335703]
[1770148045165,0.00683776,2194.9,2193.6,14.35459555]
[1770148045367,0.00683776,2194.8,2193.7,1.2419894]
[1770148045597,0.00683776,2195.0,2193.9,0.2335703]
[1770148045785,0.00683776,2195.0,2193.5,10.945796]
[1770148045786,0.00683776,2193.6,2192.9,1.14003426]
[1770148045993,0.00683776,2194.0,2192.9,1.14003426]
[1770148045994,0.00683776,2194.5,2192.9,13.94751494]
[1770148046177,11.74891141,2195.0,2193.1,0.1024]
[1770148046379,11.74891141,2195.0,2193.3,0.1024]
[1770148046380,0.6257032,2194.9,2193.3,0.1024]
[1770148046671,0.6257032,2194.9,2193.0,1.85086864]
[1770148046672,0.00683916,2194.3,2193.0,1.85086864]
[1770148046875,0.00683916,2194.3,2192.8,0.001]
[1770148046876,0.86,2194.2,2192.8,0.001]
[1770148047574,11.74891141,2194.3,2192.8,0.001]
[1770148047778,0.70233382,2194.4,2193.3,1.13981917]
[1770148047967,0.70233382,2194.4,2193.4,0.2335703]
[1770148048430,0.70233382,2194.9,2193.4,0.83709805]
[1770148048701,0.70233382,2194.9,2193.4,0.2335703]
[1770148049185,0.861,2195.0,2193.4,1.373352]
[1770148049513,13.74887017,2195.0,2193.3,0.2335703]
[1770148049720,13.74887017,2195.0,2193.2,0.1024]
[1770148049721,13.75570933,2195.0,2192.8,1.51988205]
[1770148050004,13.75570933,2195.0,2193.0,0.1024]
[1770148050005,14.45804315,2195.0,2193.0,0.1024]
[1770148050175,11.74891141,2194.8,2193.0,0.1024]
[1770148050378,11.75575057,2194.8,2192.8,0.001]
[1770148050576,11.74891141,2194.4,2192.8,0.001]
[1770148050880,0.862,2194.3,2192.8,0.001]
[1770148051091,13.31324523,2194.3,2192.8,0.001]
[1770148051299,13.19416277,2194.2,2192.8,0.001]
[1770148051602,13.89649659,2194.2,2192.8,0.001]
[1770148052006,0.864,2194.1,2192.8,0.2345703]
[1770148052372,0.864,2194.1,2193.5,0.001]
[1770148052774,0.864,2194.1,2193.3,0.001]
[1770148053388,12.61291141,2194.1,2192.8,0.001]
[1770148053598,0.00683916,2193.7,2192.8,0.001]
[1770148053829,0.00683916,2193.8,2192.8,0.001]
[1770148054127,0.00683916,2193.6,2192.8,0.001]
[1770148054325,0.00683916,2193.6,2192.2,0.1024]
[1770148054326,0.00683916,2193.5,2192.2,0.1024]
[1770148054614,0.00683916,2193.4,2191.9,13.11242843]
[1770148054823,0.00683916,2193.4,2192.0,2.46209416]
[1770148054989,0.00683916,2193.4,2192.0,1.55141816]
[1770148055171,0.00683916,2193.4,2192.1,0.91076403]
[1770148055376,0.00683916,2193.4,2192.0,1.55141816]
[1770148055579,0.87284088,2193.3,2192.0,1.44901816]
[1770148055806,0.87284088,2193.3,2192.1,1.45614466]
[1770148056010,0.00684088,2193.3,2192.1,1.45614466]
[1770148056216,0.865,2193.2,2192.1,1.45614466]
[1770148056978,0.865,2193.2,2192.1,2.59659092]
[1770148057212,0.00684088,2193.5,2192.1,1.45614466]
[1770148057213,0.866,2193.1,2192.1,1.45614466]
[1770148057584,0.866,2193.1,2192.0,0.2335703]
[1770148057780,0.866,2193.1,2192.1,0.91455475]
[1770148058009,0.866,2193.1,2192.0,0.2335703]
[1770148058204,0.866,2193.1,2192.1,0.91486049]
[1770148058403,0.866,2193.1,2192.0,0.2335703]
[1770148058714,0.866,2193.1,2192.0,0.85771732]
[1770148059293,0.866,2193.1,2192.1,0.91461412]
[1770148059495,0.866,2193.1,2192.0,0.85771732]
[1770148060887,0.866,2193.1,2192.0,14.80570819]
[1770148061624,0.866,2193.1,2191.6,0.1356283]
[1770148061625,0.00684134,2192.7,2191.6,0.1356283]
[1770148061791,11.75575275,2192.8,2191.6,0.1356283]
[1770148062287,0.00684134,2192.8,2191.6,0.1356283]
[1770148062488,0.867,2192.7,2191.6,1.27631596]
[1770148062707,0.867,2192.8,2191.6,1.27631596]
[1770148062893,0.867,2192.8,2191.6,0.1356283]
[1770148062894,0.70233382,2192.8,2191.6,0.1356283]
[1770148063096,0.868,2192.7,2191.6,0.1356283]
[1770148063440,0.868,2192.7,2191.6,1.75642568]
[1770148063618,0.868,2192.7,2191.7,0.2335703]
[1770148063791,11.74891141,2193.3,2191.7,0.2335703]
[1770148063983,0.868,2193.2,2191.7,0.2335703]
[1770148064600,11.74891141,2193.1,2191.7,0.2335703]
[1770148065002,11.74891141,2193.5,2192.0,0.2335703]
[1770148065199,0.869,2193.0,2192.0,1.30410579]